bitfinex-derivatives/quotes_ETHF0:USTF0_20210402
["timestamp","ask_amount","ask_price","bid_price","bid_amount"]
[1617325085809,30.2695,1951.6,1951.5,3.34678937]
[1617325086210,30.2695,1951.6,1951.5,8.68008815]
[1617325086409,30.2695,1951.6,1951.5,3.34678937]
[1617325086810,30.2695,1951.6,1951.5,2.90695]
[1617325087913,28.9572,1951.6,1951.5,2.90695]
[1617325088314,28.9572,1951.6,1951.5,3.34817412]
[1617325090513,30.6152,1951.6,1951.5,3.34817412]
[1617325090915,30.6152,1951.6,1951.5,2.90695]
[1617325091913,33.52215,1951.6,1951.5,2.90695]
[1617325092117,30.6152,1951.6,1951.5,2.90695]
[1617325093118,28.9572,1951.6,1951.5,2.90695]
[1617325096624,28.9572,1951.6,1951.5,4.25885]
[1617325097025,28.9572,1951.6,1951.5,4.69972657]
[1617325097427,28.9572,1951.6,1951.5,10.04283266]
[1617325098226,28.9572,1951.6,1951.5,4.69972657]
[1617325098426,27.0526,1951.6,1951.5,11.22904824]
[1617325098627,26.1681,1951.6,1951.5,11.22904824]
[1617325098827,23.5146,1951.6,1951.5,4.69972657]
[1617325099025,21.7456,1951.6,1951.5,4.69972657]
[1617325099227,19.9766,1951.6,1951.5,4.69972657]
[1617325099427,17.5571,1951.6,1951.5,4.69972657]
[1617325099828,14.3364,1952.4,1951.5,4.69972657]
[1617325100028,14.3364,1952.4,1951.6,60.2844]
[1617325100430,14.3364,1952.4,1952.1,4.14994428]
[1617325100632,14.3364,1952.4,1952.1,5.48494428]
[1617325101030,14.3364,1952.4,1952.2,0.44069771]
[1617325101232,14.3364,1952.4,1952.2,4.59107205]
[1617325101430,14.3364,1952.4,1952.2,0.44069771]
[1617325101629,14.3364,1952.4,1952.3,0.44070877]
[1617325101830,14.3364,1952.4,1952.3,2.90695]
[1617325102230,14.3364,1952.4,1952.3,3.34765238]
[1617325104133,14.3364,1952.4,1952.3,2.90695]
[1617325106744,14.3364,1952.4,1951.9,4.15944022]
[1617325106942,15.6763,1952.4,1951.8,4.16092828]
[1617325107143,45.6763,1952.4,1951.7,1.80568573]
[1617325107844,2.90695,1951.8,1951.7,2.90695]
[1617325108044,4.11075,1951.8,1951.7,2.90695]
[1617325108244,1.2038,1951.8,1951.7,3.34800927]
[1617325110245,1.2038,1951.8,1951.7,2.90695]
[1617325111945,4.11075,1951.8,1951.7,2.90695]
[1617325112946,28.9255,1952.0,1951.7,2.90695]
[1617325113947,28.9255,1952.0,1951.9,2.90695]
[1617325115359,28.9255,1952.0,1951.9,4.370275]
[1617325115552,28.7027,1952.0,1951.9,4.370275]
[1617325115752,28.3627,1952.0,1951.9,4.370275]
[1617325115950,28.0799,1952.0,1951.9,4.370275]
[1617325116349,28.0799,1952.0,1951.9,3.347275]
[1617325116550,23.8373,1952.0,1951.9,9.87014694]
[1617325116752,7.6791,1952.0,1951.9,9.87014694]
[1617325117150,0.0001,1952.0,1951.9,9.87014694]
[1617325117350,14.3364,1952.4,1951.9,10.88584694]
[1617325117954,14.3364,1952.4,1952.3,2.90695]
[1617325118156,14.3364,1952.4,1952.3,8.45130371]
[1617325118354,14.3364,1952.4,1952.3,8.89146583]
[1617325119158,14.3364,1952.4,1952.3,4.74271212]
[1617325119754,14.3364,1952.4,1952.3,8.89544022]
[1617325120555,14.3364,1952.4,1952.3,4.74271212]
[1617325121358,14.3364,1952.4,1952.3,8.89189557]
[1617325122158,14.3364,1952.4,1952.3,10.89189557]
[1617325122358,8.4163,1952.4,1952.3,10.89189557]
[1617325122560,2.0401,1952.4,1952.3,10.89189557]
[1617325122760,80.1074,1953.3,1952.3,10.89189557]
[1617325122962,80.1074,1953.3,1952.3,6.74271212]
[1617325123363,80.1074,1953.3,1952.4,4.58704125]
[1617325123562,80.1074,1953.3,1952.4,7.61694125]
[1617325123768,80.1074,1953.3,1952.5,4.14630197]
[1617325123967,80.1074,1953.3,1953.2,2.90695]
[1617325124168,80.1074,1953.3,1953.2,4.36405]
[1617325127270,80.1074,1953.3,1953.2,2.90695]
[1617325131975,16.91915,1953.9,1953.2,2.90695]
[1617325132178,16.91915,1953.9,1953.8,2.90695]
[1617325134378,16.91915,1953.9,1952.5,67.4368]
[1617325134577,18.07995,1953.9,1952.5,67.4368]
[1617325136180,15.173,1953.9,1953.7,2.90695]
[1617325138080,2.90695,1953.8,1953.7,2.90695]
[1617325142701,30.0,1953.7,1952.0,4.14743765]
[1617325142912,30.0,1953.7,1952.3,81.3354]
[1617325143495,14.4482,1953.6,1952.3,81.3354]
[1617325144295,14.4482,1953.6,1953.0,2.90695]
[1617325146297,2.90695,1953.4,1953.3,2.90695]
[1617325146497,4.08355,1953.4,1953.3,2.90695]
[1617325149399,34.08355,1953.4,1953.3,2.90695]
[1617325149598,30.0,1953.2,1951.9,4.15204483]
[1617325150000,30.0,1953.2,1951.7,68.003]
[1617325150200,14.9707,1953.1,1951.7,68.003]
[1617325150402,29.8368,1953.1,1952.8,2.90695]
[1617325152304,29.8368,1953.1,1953.0,2.90695]
[1617325154406,32.74375,1953.1,1953.0,2.90695]
[1617325154806,29.8368,1953.1,1953.0,2.90695]
[1617325156410,29.8368,1953.1,1953.0,3.3463954]
[1617325159413,29.8368,1953.1,1953.0,2.90695]
[1617325159613,29.8368,1953.1,1953.0,3.34641129]
[1617325160014,29.8368,1953.1,1953.0,2.90695]
[1617325160313,29.8368,1953.1,1953.0,3.3464149]
[1617325160713,29.8368,1953.1,1953.0,2.90695]
[1617325161714,29.8368,1953.1,1953.0,3.34642052]
[1617325162116,29.8368,1953.1,1953.0,2.90695]
[1617325163919,29.8368,1953.1,1953.0,4.26745]
[1617325164118,29.8368,1953.1,1953.0,4.70659264]
[1617325166122,29.8368,1953.1,1953.0,3.34609264]
[1617325168026,30.8461,1953.1,1953.0,3.34609264]
[1617325168229,29.8368,1953.1,1953.0,3.34609264]
[1617325172731,29.8368,1953.1,1953.0,2.90695]
[1617325173533,29.8368,1953.1,1953.0,3.34789753]
[1617325174832,30.8477,1953.1,1953.0,4.37369753]
[1617325175032,29.8368,1953.1,1953.0,3.34789753]
[1617325184143,29.8368,1953.1,1953.0,4.36289753]
[1617325184742,29.8368,1953.1,1953.0,9.71063181]
[1617325185444,29.8368,1953.1,1953.0,4.36289753]
[1617325189050,29.0206,1953.1,1953.0,5.42159753]
[1617325189271,28.0248,1953.1,1953.0,7.42159753]
[1617325189462,2.3062,1953.1,1953.0,7.42159753]
[1617325189663,13.4483,1953.6,1953.1,68.0525]
[1617325189852,12.4383,1953.6,1953.1,70.0525]
[1617325190055,12.4383,1953.6,1953.4,6.51730132]
[1617325190252,10.1769,1953.6,1953.5,2.0]
[1617325190452,85.0941,1955.4,1953.5,2.0]
[1617325190852,88.00105,1955.4,1955.3,2.90695]
[1617325191053,2.90695,1955.4,1955.3,2.90695]
[1617325193856,2.90695,1955.4,1955.3,60.28385]
[1617325195756,3.91615,1955.4,1955.3,60.28385]
[1617325195956,2.90695,1955.4,1955.3,60.28385]
[1617325196560,2.90695,1955.4,1955.3,2.90695]
[1617325201263,13.6991,1955.5,1955.3,2.90695]
[1617325201462,13.6991,1955.5,1955.4,70.0032]
[1617325201862,13.6991,1955.5,1955.3,2.90695]
[1617325202063,13.6991,1955.5,1955.4,66.3795]
[1617325202962,13.6991,1955.5,1955.3,2.90695]
[1617325206765,15.2271,1955.5,1955.3,2.90695]
[1617325208365,45.2271,1955.5,1955.3,2.90695]
[1617325209066,32.90695,1955.4,1955.3,2.90695]
[1617325209467,34.90695,1955.4,1955.3,2.90695]
[1617325210566,32.90695,1955.4,1955.3,2.90695]
[1617325210768,2.90695,1955.4,1955.3,2.90695]
[1617325211871,13.6991,1955.5,1955.3,2.90695]
[1617325212069,13.6991,1955.5,1955.3,3.94505]
[1617325215887,13.6991,1955.5,1955.3,5.94505]
[1617325216679,13.6991,1955.5,1955.3,6.95345]
[1617325217681,13.8974,1955.8,1955.3,6.95345]
[1617325219081,13.8974,1955.8,1955.7,2.90695]
[1617325219483,13.8974,1955.8,1955.7,4.53785]
[1617325219883,13.8974,1955.8,1955.7,6.53785]
[1617325222187,13.8974,1955.8,1955.7,2.90695]
[1617325225594,11.8674,1955.8,1955.7,2.90695]
[1617325225992,11.8674,1955.8,1955.7,4.90695]
[1617325227592,10.8634,1955.8,1955.7,4.90695]
[1617325227794,9.0843,1955.8,1955.7,4.90695]
[1617325227996,7.8141,1955.8,1955.7,4.90695]
[1617325228194,89.0941,1956.4,1955.8,71.8022]
[1617325228394,89.0941,1956.4,1955.9,2.0]
[1617325228594,88.7666,1956.4,1955.9,2.0]
[1617325228995,88.7666,1956.4,1956.3,2.90695]
[1617325229394,12.4149,1956.9,1956.3,2.90695]
[1617325229595,12.4149,1956.9,1956.4,67.7423]
[1617325229794,8.3869,1956.9,1956.4,67.7423]
[1617325229994,11.0608,1957.0,1956.4,67.7423]
[1617325230195,2.0,1959.3,1956.4,2.0]
[1617325230395,2.0,1959.3,1958.3,70.6866]
[1617325230597,2.0,1959.3,1958.3,71.707]
[1617325230997,9.90695,1958.9,1958.8,2.90695]
[1617325231399,7.0,1958.9,1958.8,2.90695]
[1617325232800,7.0,1958.9,1958.8,91.15455]
[1617325232999,7.0,1958.9,1958.8,2.90695]
[1617325235402,6.0,1958.9,1958.8,2.90695]
[1617325235804,7.0,1958.9,1958.8,2.90695]
[1617325237212,3.0,1958.9,1958.8,2.90695]
[1617325237604,7.0,1958.9,1958.8,2.90695]
[1617325238203,9.0,1958.9,1958.8,2.90695]
[1617325238405,9.0,1958.9,1957.5,73.8754]
[1617325238802,39.0,1958.9,1957.5,73.8754]
[1617325239215,27.8274,1958.8,1958.6,2.90695]
[1617325239807,29.4524,1958.8,1958.6,2.90695]
[1617325241107,32.35935,1958.8,1958.6,2.90695]
[1617325242507,32.35935,1958.8,1958.6,86.85395]
[1617325242707,30.73435,1958.8,1958.6,86.85395]
[1617325243108,27.8274,1958.8,1958.6,86.85395]
[1617325243308,27.8274,1958.8,1958.6,2.90695]
[1617325244311,29.4414,1958.8,1958.6,2.90695]
[1617325246613,27.8274,1958.8,1958.6,2.90695]
[1617325247213,27.8274,1958.8,1958.6,72.84995]
[1617325249615,27.8274,1958.8,1958.6,2.90695]
[1617325250016,2.0,1958.7,1958.6,2.90695]
[1617325250519,32.0,1958.7,1958.6,2.90695]
[1617325250717,32.0,1958.7,1958.6,88.53635]
[1617325251118,34.90695,1958.7,1958.6,85.6294]
[1617325252017,4.90695,1958.7,1958.6,85.6294]
[1617325252618,2.0,1958.7,1958.6,85.6294]
[1617325253220,2.0,1958.7,1958.6,88.53635]
[1617325254337,27.8274,1958.8,1958.6,88.53635]
[1617325257926,27.8274,1958.8,1958.6,2.90695]
[1617325262037,14.6372,1959.1,1958.8,64.0729]
[1617325262038,13.6131,1959.1,1958.8,64.0729]
[1617325262239,13.6131,1959.1,1958.8,65.604]
[1617325262639,13.6131,1959.1,1958.8,3.5311]
[1617325262852,13.6131,1959.1,1958.9,70.0435]
[1617325263239,13.6131,1959.1,1959.0,2.90695]
[1617325268243,13.6131,1959.1,1958.9,70.0435]
[1617325268244,13.6131,1959.1,1958.9,61.95045]
[1617325269243,13.6131,1959.1,1959.0,2.90695]
[1617325276657,13.6131,1959.1,1958.9,61.95045]
[1617325276863,14.9904,1959.1,1958.9,61.95045]
[1617325277456,2.90695,1959.0,1958.9,61.95045]
[1617325277656,4.90695,1959.0,1958.9,61.95045]
[1617325278055,34.90695,1959.0,1958.9,61.95045]
[1617325279557,34.90695,1959.0,1958.6,2.90695]
[1617325279757,34.90695,1959.0,1957.4,65.7442]
[1617325280759,14.447,1958.9,1957.4,65.7442]
[1617325280959,2.0,1958.8,1957.4,65.7442]
[1617325281560,2.0,1958.8,1958.3,2.90695]
[1617325283564,2.90695,1958.4,1958.3,2.90695]
[1617325283764,4.30995,1958.4,1958.3,2.90695]
[1617325288368,2.90695,1958.4,1958.3,2.90695]
[1617325288770,4.90695,1958.4,1958.3,2.90695]
[1617325289569,4.90695,1958.4,1957.8,2.90695]
[1617325289769,34.90695,1958.4,1956.0,2.0]
[1617325289970,81.0753,1958.2,1956.5,82.0826]
[1617325290169,30.0,1958.1,1956.5,82.0826]
[1617325290369,31.2101,1958.1,1956.6,0.42871534]
[1617325291670,2.90695,1957.5,1957.2,2.90695]
[1617325291871,3.95845,1957.5,1957.2,2.90695]
[1617325293773,2.90695,1957.3,1957.2,2.90695]
[1617325296576,14.3303,1957.4,1957.2,2.90695]
[1617325296777,14.3303,1957.4,1957.3,62.8503]
[1617325301881,14.3303,1957.4,1957.2,2.90695]
[1617325302084,15.7733,1957.4,1957.2,2.90695]
[1617325302282,15.7733,1957.4,1956.7,77.1139]
[1617325303685,15.7733,1957.4,1957.0,2.90695]
[1617325305088,45.7733,1957.4,1957.0,2.90695]
[1617325305287,2.0,1957.3,1957.0,2.90695]
[1617325305488,30.0,1957.2,1957.0,2.90695]
[1617325305692,4.90695,1957.1,1957.0,2.90695]
[1617325306388,2.90695,1957.1,1957.0,2.90695]
[1617325307188,4.90695,1957.1,1957.0,2.90695]
[1617325308792,2.90695,1957.1,1957.0,2.90695]
[1617325318205,14.3303,1957.4,1957.0,4.54015]
[1617325318601,14.3303,1957.4,1957.3,69.7609]
[1617325319901,14.3303,1957.4,1957.3,72.66785]
[1617325323306,14.3303,1957.4,1957.3,73.74405]
[1617325325808,14.3303,1957.4,1957.3,3.98315]
[1617325330615,12.7954,1957.4,1957.3,3.98315]
[1617325336228,12.7954,1957.4,1957.3,2.90695]
[1617325336423,12.7954,1957.4,1957.3,3.32946567]
[1617325337432,12.7954,1957.4,1957.3,2.90695]
[1617325337633,12.7954,1957.4,1957.3,63.06045]
[1617325337827,14.3796,1957.4,1957.3,63.06045]
[1617325340233,17.28655,1957.4,1957.3,63.06045]
[1617325345839,14.3796,1957.4,1957.3,63.06045]
[1617325346240,15.70235,1957.4,1957.3,63.06045]
[1617325347341,12.7954,1957.4,1957.3,63.06045]
[1617325348241,15.70235,1957.4,1957.3,63.06045]
[1617325349242,12.7954,1957.4,1957.3,63.06045]
[1617325350243,12.7954,1957.4,1957.3,2.90695]
[1617325368371,25.7954,1957.4,1957.3,2.90695]
[1617325371978,25.7954,1957.4,1957.3,3.33061562]
[1617325372978,25.7954,1957.4,1957.3,2.90695]
[1617325374479,25.7954,1957.4,1957.3,3.33132294]
[1617325376280,25.7954,1957.4,1957.3,7.45912328]
[1617325378283,25.7954,1957.4,1957.3,3.33132294]
[1617325378684,25.7954,1957.4,1957.3,7.45903968]
[1617325381688,25.7954,1957.4,1957.3,83.33293968]
[1617325381888,25.7954,1957.4,1957.3,79.20522294]
[1617325382289,25.7954,1957.4,1957.3,81.0063181]
[1617325382790,28.70235,1957.4,1957.3,78.78085]
[1617325383489,25.7954,1957.4,1957.3,78.78085]
[1617325387194,25.7954,1957.4,1957.3,79.2079813]
[1617325390498,25.7954,1957.4,1957.3,83.34522273]
[1617325390898,25.7954,1957.4,1957.3,79.2079813]
[1617325392200,25.7954,1957.4,1957.3,3.3340813]
[1617325393705,25.7954,1957.4,1957.3,7.47235777]
[1617325395408,25.7954,1957.4,1957.3,3.3340813]
[1617325396008,25.7954,1957.4,1957.3,8.65305671]
[1617325396208,24.7726,1957.4,1957.3,8.65305671]
[1617325396616,24.7726,1957.4,1957.3,5.3340813]
[1617325397012,21.3235,1957.4,1957.3,5.3340813]
[1617325397211,14.4253,1957.4,1957.3,5.3340813]
[1617325397612,14.4253,1957.4,1957.3,11.820946]
[1617325398312,14.2196,1957.4,1957.3,11.820946]
[1617325398914,14.2196,1957.4,1957.3,5.3340813]
[1617325400515,14.2196,1957.4,1957.3,11.82536134]
[1617325401316,12.3031,1957.4,1957.3,11.82536134]
[1617325401517,11.9293,1957.4,1957.3,11.82536134]
[1617325401916,11.1576,1957.4,1957.3,11.82536134]
[1617325402319,10.8985,1957.4,1957.3,11.82536134]
[1617325402717,10.4999,1957.4,1957.3,11.82536134]
[1617325402917,8.9422,1957.4,1957.3,11.82536134]
[1617325404118,8.9422,1957.4,1957.3,10.6521676]
[1617325404921,8.9422,1957.4,1957.3,5.3340813]
[1617325405320,8.9422,1957.4,1957.3,10.6515636]
[1617325405923,8.9422,1957.4,1957.3,5.3340813]
[1617325406921,8.9422,1957.4,1957.3,10.6461115]
[1617325407521,8.2411,1957.4,1957.3,10.6461115]
[1617325408633,8.2411,1957.4,1957.3,5.3340813]
[1617325408823,8.2411,1957.4,1957.3,10.64498149]
[1617325409237,8.2411,1957.4,1957.3,5.3340813]
[1617325410226,8.2411,1957.4,1957.3,11.82270685]
[1617325410425,8.0618,1957.4,1957.3,11.82270685]
[1617325410625,7.5072,1957.4,1957.3,11.82270685]
[1617325411630,7.5072,1957.4,1957.3,5.3340813]
[1617325414633,6.5011,1957.4,1957.3,5.3340813]
[1617325415034,5.4841,1957.4,1957.3,5.3340813]
[1617325415235,5.4087,1957.4,1957.3,5.3340813]
[1617325415837,5.4087,1957.4,1957.3,12.99766501]
[1617325418337,5.4087,1957.4,1957.3,5.3340813]
[1617325421741,4.3825,1957.4,1957.3,5.3340813]
[1617325423843,4.0338,1957.4,1957.3,5.3340813]
[1617325424045,3.0128,1957.4,1957.3,5.3340813]
[1617325425945,1.9828,1957.4,1957.3,5.3340813]
[1617325426448,1.5087,1957.4,1957.3,5.3340813]
[1617325426650,0.9482,1957.4,1957.3,5.3340813]
[1617325429051,0.9482,1957.4,1957.3,12.99061709]
[1617325429652,0.1377,1957.4,1957.3,5.3340813]
[1617325429852,13.8022,1958.3,1957.4,76.084]
[1617325430053,13.8022,1958.3,1957.4,76.51059682]
[1617325430353,13.8022,1958.3,1958.0,4.12333254]
[1617325430553,13.0672,1958.3,1958.0,4.12333254]
[1617325430753,13.0672,1958.3,1958.1,0.42619801]
[1617325431155,13.0672,1958.3,1958.2,2.90695]
[1617325431557,13.0672,1958.3,1958.2,3.33308769]
[1617325433155,12.714,1958.3,1958.2,3.33308769]
[1617325437564,12.714,1958.3,1958.2,2.90695]
[1617325438564,12.714,1958.3,1958.2,70.24335]
[1617325442568,12.714,1958.3,1958.2,2.90695]
[1617325443771,12.714,1958.3,1958.2,3.33202252]
[1617325455084,12.714,1958.3,1958.2,2.90695]
[1617325455286,15.62095,1958.3,1958.0,2.90695]
[1617325455486,15.62095,1958.3,1957.6,4.1510335]
[1617325455688,2.0,1958.2,1957.6,4.1510335]
[1617325455887,3.6158,1958.2,1957.5,4.15290329]
[1617325456087,78.8699,1957.6,1957.5,4.15290329]
[1617325456287,80.0724,1957.6,1957.5,4.15290329]
[1617325456487,80.0724,1957.6,1957.5,4.57960435]
[1617325456887,80.0724,1957.6,1957.5,0.42670106]
[1617325457287,80.0724,1957.6,1957.5,7.4881862]
[1617325461793,80.0724,1957.6,1957.5,3.33365106]
[1617325463395,82.97935,1957.6,1957.5,3.33365106]
[1617325463594,82.97935,1957.6,1957.5,2.90695]
[1617325463994,98.97935,1957.6,1957.5,2.90695]
[1617325465297,98.97935,1957.6,1957.3,2.90695]
[1617325467400,2.90695,1957.4,1957.3,2.90695]
[1617325467604,4.90695,1957.4,1957.3,2.90695]
[1617325473007,34.90695,1957.4,1956.9,5.95036798]
[1617325473406,2.90695,1957.0,1956.8,2.90695]
[1617325473607,81.6316,1956.9,1956.8,2.90695]
[1617325479420,16.2597,1957.4,1956.8,2.90695]
[1617325479620,79.1793,1957.4,1956.9,62.9196]
[1617325480020,14.2597,1957.4,1956.8,6.68945]
[1617325480219,14.2597,1957.4,1957.3,62.8949]
[1617325480420,14.2597,1957.4,1957.3,64.4909]
[1617325481420,14.2597,1957.4,1957.3,67.39785]
[1617325484825,14.2597,1957.4,1957.3,65.80185]
[1617325487226,14.2597,1957.4,1957.3,2.90695]
[1617325487525,14.598,1957.5,1957.4,60.4614]
[1617325488125,14.598,1957.5,1957.4,60.88333404]
[1617325488326,14.598,1957.5,1957.4,62.68395883]
[1617325489126,12.975,1957.6,1957.4,62.68395883]
[1617325489327,12.975,1957.6,1957.4,69.17106728]
[1617325489526,10.9416,1957.6,1957.5,4.90695]
[1617325489727,10.9416,1957.6,1957.5,13.61261684]
[1617325489927,6.8748,1957.6,1957.5,13.61261684]
[1617325490528,6.8748,1957.6,1957.5,11.61261684]
[1617325491128,6.8748,1957.6,1957.5,5.12770041]
[1617325492129,6.8748,1957.6,1957.5,11.6157132]
[1617325494529,6.8748,1957.6,1957.5,5.12770041]
[1617325494930,6.8748,1957.6,1957.5,11.61189103]
[1617325495329,28.3238,1958.6,1957.5,5.12770041]
[1617325495529,28.3238,1958.6,1958.5,2.90695]
[1617325524063,28.3238,1958.6,1958.4,1.274]
[1617325524665,28.3238,1958.6,1958.5,2.90695]
[1617325531270,28.1818,1958.6,1958.5,2.90695]
[1617325534677,31.08875,1958.6,1958.5,2.90695]
[1617325543596,31.08875,1958.6,1957.3,73.76220484]
[1617325543797,61.08875,1958.6,1957.2,6.71591709]
[1617325543996,69.6505,1958.2,1957.4,0.42163484]
[1617325544196,70.9136,1958.2,1957.4,0.42163484]
[1617325544396,13.9199,1958.1,1957.3,0.42343452]
[1617325544597,15.9199,1958.1,1957.5,0.42387226]
[1617325544797,15.9199,1958.1,1958.0,2.90695]
[1617325546803,18.82685,1958.1,1958.0,2.90695]
[1617325549509,16.82685,1958.1,1958.0,2.90695]
[1617325561517,13.9199,1958.1,1958.0,2.90695]
[1617325563523,13.9199,1958.1,1958.0,3.3279912]
[1617325563918,13.9199,1958.1,1958.0,67.0730912]
[1617325564419,13.9199,1958.1,1958.0,68.87358969]
[1617325565220,13.9199,1958.1,1958.0,68.45254849]
[1617325570233,13.9199,1958.1,1958.0,68.87032372]
[1617325570533,13.9199,1958.1,1958.0,68.45254849]
[1617325572233,13.9199,1958.1,1958.0,4.70744849]
[1617325572433,94.3375,1958.1,1958.0,2.90695]
[1617325573035,97.24445,1958.1,1958.0,2.90695]
[1617325580237,94.3375,1958.1,1958.0,2.90695]
[1617325580439,107.3375,1958.1,1958.0,2.90695]
[1617325584643,26.9199,1958.1,1958.0,2.90695]
[1617325585042,26.9199,1958.1,1958.0,75.26825]
[1617325589248,26.9199,1958.1,1958.0,75.69183936]
[1617325590061,26.9199,1958.1,1958.0,75.26825]
[1617325593253,26.9199,1958.1,1958.0,75.69269589]
[1617325601863,26.9199,1958.1,1958.0,3.33139589]
[1617325602466,26.9199,1958.1,1958.0,2.90695]
[1617325603166,29.82685,1958.1,1958.0,2.90695]
[1617325604367,26.9199,1958.1,1958.0,2.90695]
[1617325605168,29.82685,1958.1,1958.0,2.90695]
[1617325606871,26.9199,1958.1,1958.0,2.90695]
[1617325611976,28.5197,1958.1,1958.0,2.90695]
[1617325613081,26.9199,1958.1,1958.0,2.90695]
[1617325614586,28.5006,1958.1,1958.0,2.90695]
[1617325620189,28.5006,1958.1,1958.0,7.07353991]
[1617325620791,28.5006,1958.1,1958.0,2.90695]
[1617325621191,31.40755,1958.1,1958.0,2.90695]
[1617325622294,103.65605,1958.1,1958.0,2.90695]
[1617325625198,103.65605,1958.1,1958.0,7.07439404]
[1617325625599,103.65605,1958.1,1958.0,2.90695]
[1617325625799,28.5006,1958.1,1958.0,2.90695]
[1617325626000,26.9199,1958.1,1958.0,4.20425]
[1617325626199,26.9199,1958.1,1958.0,4.62426266]
[1617325626799,26.9199,1958.1,1958.0,11.16586517]
[1617325626999,26.9199,1958.1,1958.0,4.62426266]
[1617325628199,26.9199,1958.1,1958.0,6.62426266]
[1617325628801,26.9199,1958.1,1958.0,14.34152011]
[1617325629200,26.9199,1958.1,1958.0,6.62426266]
[1617325629799,26.9199,1958.1,1958.0,4.62426266]
[1617325630303,26.9199,1958.1,1958.0,12.34150102]
[1617325631106,26.9199,1958.1,1958.0,4.62426266]
[1617325632108,26.9199,1958.1,1958.0,3.32696266]
[1617325635514,26.9199,1958.1,1958.0,9.85156781]
[1617325636513,26.9199,1958.1,1958.0,3.32696266]
[1617325638713,99.8597,1958.1,1958.0,8.66889258]
[1617325639115,99.8597,1958.1,1958.0,3.32696266]
[1617325639514,99.8597,1958.1,1958.0,2.90695]
[1617325639713,99.8597,1958.1,1958.0,3.32586425]
[1617325641121,99.8597,1958.1,1958.0,2.90695]
[1617325644021,99.8597,1958.1,1958.0,8.26893739]
[1617325645523,99.8597,1958.1,1958.0,8.6875698]
[1617325646325,99.8597,1958.1,1958.0,3.32558241]
[1617325649832,99.8597,1958.1,1958.0,8.69047263]
[1617325650131,28.224,1958.1,1958.0,3.32558241]
[1617325650333,26.9199,1958.1,1958.0,3.32558241]
[1617325651335,26.9199,1958.1,1958.0,8.6911765]
[1617325653936,26.9199,1958.1,1958.0,3.32558241]
[1617325654136,26.9199,1958.1,1958.0,2.90695]
[1617325656739,26.9199,1958.1,1958.0,7.08295264]
[1617325657739,26.9199,1958.1,1958.0,2.90695]
[1617325658841,26.9199,1958.1,1958.0,8.27431898]
[1617325659141,26.9199,1958.1,1958.0,2.90695]
[1617325664149,26.9199,1958.1,1958.0,8.69196191]
[1617325671557,26.9199,1958.1,1958.0,3.32591799]
[1617325671759,26.9199,1958.1,1958.0,2.90695]
[1617325674264,26.9199,1958.1,1958.0,7.07628827]
[1617325675576,26.9199,1958.1,1958.0,2.90695]
[1617325675577,29.82685,1958.1,1958.0,2.90695]
[1617325675769,59.82685,1958.1,1958.0,2.90695]
[1617325677564,29.82685,1958.1,1958.0,2.90695]
[1617325678164,100.03515,1958.1,1958.0,2.90695]
[1617325678966,97.1282,1958.1,1958.0,2.90695]
[1617325679568,97.1282,1958.1,1958.0,7.07824558]
[1617325680869,97.1282,1958.1,1958.0,2.90695]
[1617325682371,97.1282,1958.1,1958.0,7.07774742]
[1617325685576,97.1282,1958.1,1958.0,3.32494003]
[1617325686178,26.9199,1958.1,1958.0,8.69384436]
[1617325686578,26.9199,1958.1,1958.0,10.06554436]
[1617325686977,26.9199,1958.1,1958.0,4.69664003]
[1617325689079,24.9934,1958.1,1958.0,4.69664003]
[1617325690079,24.9934,1958.1,1958.0,12.44424496]
[1617325692383,24.8424,1958.1,1958.0,12.44424496]
[1617325694284,24.8424,1958.1,1958.0,11.07254496]
[1617325694482,24.8424,1958.1,1958.0,3.32494003]
[1617325702294,24.7012,1958.1,1958.0,3.32494003]
[1617325702494,24.3339,1958.1,1958.0,3.32494003]
[1617325702895,24.2611,1958.1,1958.0,0.41799003]
[1617325703094,24.2611,1958.1,1957.9,0.41325854]
[1617325703294,24.1253,1958.1,1957.9,0.41325854]
[1617325703897,24.1253,1958.1,1958.0,2.90695]
[1617325704498,24.1253,1958.1,1958.0,3.32011539]
[1617325705498,24.1253,1958.1,1958.0,9.86378662]
[1617325705898,24.1253,1958.1,1958.0,3.32011539]
[1617325708401,24.1253,1958.1,1958.0,8.6722861]
[1617325709106,24.1253,1958.1,1958.0,3.32011539]
[1617325710808,24.1253,1958.1,1958.0,9.86306994]
[1617325711208,24.1253,1958.1,1958.0,3.32011539]
[1617325723318,24.1253,1958.1,1958.0,85.51201539]
[1617325723819,24.1253,1958.1,1958.0,89.71246207]
[1617325725321,24.1253,1958.1,1958.0,7.52056207]
[1617325725521,20.7639,1958.1,1958.0,9.52056207]
[1617325725724,26.362,1958.6,1958.1,63.3913]
[1617325725921,25.231,1958.6,1958.2,2.0]
[1617325726124,24.413,1958.6,1958.5,2.90695]
[1617325726326,24.413,1958.6,1958.5,5.91525]
[1617325726526,24.413,1958.6,1958.5,6.32642095]
[1617325729630,24.413,1958.6,1958.5,5.31812095]
[1617325729831,24.413,1958.6,1958.5,3.31812095]
[1617325730436,24.413,1958.6,1958.5,12.86648758]
[1617325730832,24.413,1958.6,1958.5,5.11766923]
[1617325731935,24.413,1958.6,1958.5,6.13966923]
[1617325732336,24.413,1958.6,1958.5,12.69549088]
[1617325732738,24.413,1958.6,1958.5,11.67349088]
[1617325734737,25.4221,1958.6,1958.5,11.67349088]
[1617325734937,24.413,1958.6,1958.5,11.67349088]
[1617325735540,24.413,1958.6,1958.5,5.11766923]
[1617325735845,24.413,1958.6,1958.5,11.67322873]
[1617325736238,24.413,1958.6,1958.5,5.11766923]
[1617325739539,24.413,1958.6,1958.5,10.48354335]